[Event "12th National Amateur Chess-ch 2025"]
[Site "Bihar"]
[Date "2025.03.26"]
[Round "2.5"]
[White "Ebenezer, Joseph"]
[Black "Shubham Shukla"]
[Result "1/2-1/2"]
[Annotator "TA"]
[ECO "B23"]
[WhiteElo "1961"]
[BlackElo "1825"]
[PlyCount "131"]
[EventDate "2025.03.25"]
[EventCountry "IND"]
[SourceTitle "playchess.com"]
[Source "ChessBase"]
[SourceQuality "1"]
[TimeControl "5400+30"]

{[%evp 9,131,0,42,5,5,25,32,-25,4,10,15,14,12,8,11,0,4,4,-11,-55,-33,-37,0,-12,18,8,18,5,11,10,18,3,12,7,114,73,343,122,139,56,33,29,154,158,149,155,134,131,170,131,158,152,132,151,143,114,108,47,212,55,55,55,55,55,55,55,55,55,55,55,55,55,55,55,55,42,55,55,55,55,55,55,55,55,55,55,55,55,55,55,55,55,55,0,55,0,77,25,25,8,8,8,8,7,8,7,7,0,0,0,0,0,0,0,0,0,0,0,0,0,0,0,0,0]} 1. e4 {[%emt 0:01:58]} c5 {[%emt 0:00:12]} 2. Nc3 {[%emt 0:00:08]} e6 {[%emt 0:00:09]} 3. g3 {[%emt 0:00:25]} h5 {[%emt 0:02:09]} 4. h4 {[%emt 0:02:15]} Nc6 {[%emt 0:00:08]} 5. Bg2 {[%emt 0:00:14]} a6 {[%emt 0:00:17]} 6. a4 $146 {[%emt 0:01:10] B23: Closed Sicilian: Lines without g3.} (6. d3 Qc7 7. Be3 Nf6 8. Nf3 b5 9. O-O Bb7 10. Re1 Rc8 11. Qd2 Be7 12. Rad1 {1-0 Negron Lizarazo,J (1456)-Moreno Marino,J (1901) COL-ch Boyaca 2022 (6)}) 6... Nf6 {[%emt 0:01:58]} 7. d3 {[%emt 0:00:11]} d6 {[%emt 0:01:41]} 8. Nh3 {[%emt 0:04:50]} (8. Nf3 $14) 8... Be7 {[%emt 0:10:32]} 9. O-O {[%emt 0:02:14]} Rb8 {[%emt 0:10:33]} 10. Bg5 {[%emt 0:02:43]} b5 {[%emt 0:00:41]} 11. axb5 {[%emt 0:00:38]} axb5 {[%emt 0:00:03]} 12. Nf4 {[%emt 0:08:41]} b4 {[%emt 0:02:13]} 13. Nb1 {[%emt 0:01:57]} e5 {[%emt 0:01:00]} 14. Bxf6 {[%emt 0:09:27]} exf4 {[%emt 0:00:34]} 15. Bxg7 {[%emt 0:09:59]} Rh7 {[%emt 0:00:24] [#] Black sacrificed a pawn} 16. e5 $1 {[%emt 0:00:15]} Nd4 {[%emt 0:00:16] aiming for ...Bg4.} 17. exd6 $1 {[%emt 0:03:04]} Qxd6 {[%emt 0:08:37]} (17... Rxg7 18. dxe7 Qxe7 19. Re1 $16 (19. Qxh5 fxg3 20. Nd2 Ne2+ 21. Kh1 Rg4 $11)) 18. Bxd4 {[%emt 0:00:39]} cxd4 {[%emt 0:02:08]} 19. Nd2 {[%emt 0:02:47]} fxg3 {[%emt 0:00:13]} 20. Ne4 {[%emt 0:00:08]} gxf2+ {[%emt 0:00:04]} 21. Rxf2 {[%emt 0:00:20]} Qg6 {[%emt 0:00:12]} (21... Qh6 $1 $11) 22. Qf3 {[%emt 0:07:56]} Be6 $2 {[%emt 0:10:12][%mdl 8192]} (22... Bb7 $16 {was necessary.}) 23. Qf4 $2 {[%emt 0:12:11]} (23. Ng5 $18 {and the rest is easy.} Bxg5 24. hxg5) 23... Rd8 $16 {[%emt 0:07:36]} 24. Ra7 {[%emt 0:00:24] White attacks} (24. Ng5 $16 Rg7 25. Ra5) 24... f5 $1 $14 {[%emt 0:01:27]} 25. Qg3 {[%emt 0:18:03]} (25. Ng5 $2 Bxg5 26. hxg5 Rxa7 $19) 25... Rg7 {[%emt 0:20:23] [#]} (25... Qxg3 $11 {remains equal.} 26. Nxg3 Rg7 27. Nxh5 (27. Nxf5 Bxf5 28. Rxf5 Rc8 $16) 27... Rg4) 26. Ng5 $1 $16 {[%emt 0:00:49][%mdl 512] Really sharp! White has more active pieces.} Bxg5 {[%emt 0:01:22]} 27. Rxg7 {[%emt 0:00:18]} Qxg7 {[%emt 0:00:02]} 28. hxg5 {[%emt 0:00:48]} (28. Qxg5 Qxg5 29. hxg5 Kf7 $19) 28... Kf7 {[%emt 0:00:38]} 29. Re2 {[%emt 0:01:20]} Qg6 {[%emt 0:07:58]} 30. Bf3 {[%emt 0:03:32]} Kg8 {[%emt 0:07:30]} 31. Rh2 {[%emt 0:03:34]} f4 {[%emt 0:00:15]} 32. Qxf4 {[%emt 0:01:05]} Rf8 {[%emt 0:00:02]} 33. Qe4 {[%emt 0:00:31]} (33. Bxh5 $16 {Qxf8+ is the strong threat.} Qf5 34. Qxf5 (34. Qxd4 $2 Qf1#) 34... Rxf5 35. Kg2) 33... Rf5 {[%emt 0:01:05]} (33... Qxg5+ $2 {is the wrong capture.} 34. Rg2 Bg4 35. Bxg4 Qe3+ 36. Qxe3 dxe3 37. Bxh5+ Kh7 38. Bg6+ Kh6 39. Be4 $18) (33... Qxe4 $14 34. Bxe4 Bg4) 34. Bxh5 $2 {[%emt 0:01:43]} (34. Rxh5 $18 b3 (34... Bd5 35. Qxd4 Rxg5+ 36. Rxg5 $18) 35. cxb3 Rxg5+ (35... Bd5 $2 36. Qxd4 Rxg5+ 37. Rxg5 $16) 36. Kf2) 34... Rxg5+ $14 {[%emt 0:01:39]} 35. Rg2 {[%emt 0:00:06]} (35. Qg2 {simplifies} Rxg2+ 36. Rxg2 Qxg2+ 37. Kxg2 Bf5 38. Kg3) 35... Qf6 {[%emt 0:01:24]} 36. Rxg5+ {[%emt 0:01:20]} Qxg5+ {[%emt 0:00:01]} 37. Qg2 {[%emt 0:00:01]} Qxg2+ {[%emt 0:00:58]} 38. Kxg2 {[%emt 0:00:00][%mdl 4096] Endgame KB-KB. White is a pawn up.} Bf5 {[%emt 0:00:02][%cal Ob4b3]} 39. Kf3 {[%emt 0:00:56]} Kg7 $1 {[%emt 0:00:20][%cal Ob4b3]} 40. Kf4 {[%emt 0:00:47]} Kf6 {[%emt 0:00:01][%cal Ob4b3]} 41. Bg4 {[%emt 0:00:38]} Bg6 {[%emt 0:00:02]} 42. Bf3 {[%emt 0:00:43]} Bf5 {[%emt 0:00:08]} 43. Be4 {[%emt 0:00:05]} Bd7 {[%emt 0:00:03]} 44. Bh7 {[%emt 0:00:27]} Bc6 {[%emt 0:00:02]} 45. Bf5 {[%emt 0:00:12]} Bb7 {[%emt 0:00:06]} 46. Be4 {[%emt 0:00:22]} Bc8 {[%emt 0:00:24]} 47. Bd5 {[%emt 0:00:40]} Bf5 {[%emt 0:00:27]} 48. Bc4 {[%emt 0:00:57]} Bg6 {[%emt 0:00:20]} 49. Bb5 {[%emt 0:00:23]} Bf5 {[%emt 0:00:40]} 50. Bc6 {[%emt 0:00:23]} Bg6 {[%emt 0:03:00]} 51. Bd5 {[%emt 0:00:37]} Bf5 $1 {[%emt 0:01:41]} 52. Bc6 {[%emt 0:00:00]} Bg6 $1 {[%emt 0:00:13]} 53. Bd7 {[%emt 0:00:17] Wards off Bf5} ({Better is} 53. Bb7 $16) 53... b3 $1 $11 {[%emt 0:00:56]} 54. cxb3 {[%emt 0:00:07]} Bxd3 {[%emt 0:00:02] The position is equal.} 55. b4 {[%emt 0:00:23]} Ke7 $1 {[%emt 0:00:05]} 56. Bc6 {[%emt 0:00:18]} Kd6 {[%emt 0:00:28]} 57. Be4 {[%emt 0:00:08]} Be2 {[%emt 0:00:24]} 58. Kg3 {[%emt 0:02:21]} Kc7 {[%emt 0:00:08]} 59. Kf2 {[%emt 0:00:26]} Bc4 {[%emt 0:00:02]} 60. Bg6 {[%emt 0:00:31]} Kb6 {[%emt 0:00:15]} 61. Be8 {[%emt 0:00:12]} Be6 {[%emt 0:00:56]} 62. Ke1 {[%emt 0:00:12]} Bd5 {[%emt 0:00:34]} 63. Kd2 {[%emt 0:00:17]} Bc6 {[%emt 0:00:55]} 64. Bxc6 {[%emt 0:01:08]} Kxc6 {[%emt 0:00:02]} 65. Kc2 {[%emt 0:00:13]} (65. Kd3 $5 Kb5 $8 66. Ke2 $11) 65... Kb6 {[%emt 0:00:23]} 66. Kd3 {[%emt 0:01:14] White really could win this.   Weighted Error Value: White=0.21 (precise) /Black=0.16 (very precise)   Loses game:     	---       	Black=2      Missed win:     	White=1     	---        Mistake:       	White=5     	Black=2      Inaccurate:     	White=2     	Black=2      OK:         	White=24    	Black=25     Best:        	White=2     	Black=5      Strong:       	White=2     	Black=6} 1/2-1/2

[Event "12th National Amateur Chess-ch 2025"]
[Site "Bihar"]
[Date "2025.03.26"]
[Round "2.6"]
[White "Ashutosh, Kumar"]
[Black "Aaradhya Jain"]
[Result "0-1"]
[Annotator "TA"]
[ECO "C11"]
[WhiteElo "1923"]
[BlackElo "1820"]
[PlyCount "80"]
[EventDate "2025.03.25"]
[EventCountry "IND"]
[SourceTitle "playchess.com"]
[Source "ChessBase"]
[SourceQuality "1"]
[TimeControl "5400+30"]

{[%evp 21,80,0,0,0,33,-26,0,0,0,0,0,0,0,0,0,-245,0,-229,-83,-36,-41,-50,-54,-135,-135,-136,-152,-135,-117,-419,-212,-627,-662,-704,-582,-1164,-1188,-1193,-1160,-1291,-1283,-1285,-1270,-1272,-1035,-1072,-1086,-1085,-1056,-1073,-1110,-1104,-1099,-1403,-1133,-1110,-1111,-1387,-1247,-1189,-1149]} 1. e4 {[%emt 0:04:01][%cal Be2e4,Be4e5][%mdl 32]} e6 {[%emt 0:00:28]} 2. d4 {[%emt 0:00:02]} d5 {[%emt 0:00:12]} 3. Nc3 {[%emt 0:00:05]} Nf6 {[%emt 0:00:06]} 4. e5 {[%emt 0:00:15]} Nfd7 {[%emt 0:00:06]} 5. f4 {[%emt 0:00:05]} c5 {[%emt 0:00:05]} 6. Nf3 {[%emt 0:00:11]} Nc6 {[%emt 0:00:06]} 7. Be3 {[%emt 0:00:13]} Be7 {[%emt 0:00:10]} 8. Qd2 {[%emt 0:00:34]} O-O {[%emt 0:00:10]} 9. dxc5 {[%emt 0:01:08]} Bxc5 {[%emt 0:00:53]} 10. O-O-O {[%emt 0:02:59]} Qa5 {[%emt 0:01:06]} 11. Bxc5 {[%emt 0:04:38]} Nxc5 {[%emt 0:00:12]} 12. Kb1 {[%emt 0:00:56] C11: French: Classical System: 4 e5 and 4 Bg5 dxe4.} Rb8 {[%emt 0:13:42]} 13. Bd3 {[%emt 0:05:34]} (13. Qe3 $14) 13... b5 {[%emt 0:03:57][%cal Bb7b5,Bb5b4][%mdl 32]} 14. Bxh7+ $146 {[%emt 0:12:42] The position is equal.} (14. Ne2 b4 15. Nc1 Ba6 16. Nb3 Nxb3 17. cxb3 Bxd3+ 18. Qxd3 Rb6 19. Ka1 Ra6 20. Qb1 {1-0 Maghsoodloo,P (2701)-Mokshanov,A (2429) Titled Tuesday intern op 18th Jan blitz 2022 (3)}) 14... Kxh7 {[%emt 0:00:18]} 15. Qf2 {[%emt 0:00:56]} b4 {[%emt 0:31:37]} 16. Qh4+ {[%emt 0:00:58]} Kg8 {[%emt 0:00:04]} 17. Ng5 $1 {[%emt 0:00:35][%csl Gg5][%cal Rh4h7]} Re8 $1 {[%emt 0:00:39]} 18. Qh7+ {[%emt 0:02:38]} Kf8 {[%emt 0:01:34]} 19. Ne2 {[%emt 0:15:36] [#]} (19. Qh5 $1 $11 {and White has nothing to worry.} Rb7 (19... bxc3 20. Qxf7#) 20. Ne2 (20. Qh8+ $2 Ke7 $19)) 19... Ba6 {[%emt 0:09:36]} (19... Na4 $1 $19 {[%cal Ra4c3] and Black stays clearly on top. and ...Nc3+! should not be overlooked} 20. Qh5 Ke7 21. Qxf7+ Kd8) 20. Nc1 $17 {[%emt 0:10:10]} Na4 {[%emt 0:08:05][%cal Oa4c3]} 21. Qh5 {[%emt 0:09:57][%csl Gg5][%cal Rh5f7]} Rb7 {[%emt 0:04:54][%cal Oa4c3]} 22. Qh8+ {[%emt 0:09:47]} (22. f5 $1 $15 Nc3+ (22... exf5 23. Qh8+ Ke7 24. Qxg7 $16) 23. Ka1 (23. bxc3 $2 bxc3+ 24. Ka1 Qa3 $19) 23... Nxe5 (23... Nxd1 24. f6 gxf6 25. exf6) 24. fxe6) 22... Ke7 {[%emt 0:00:11]} 23. Qxg7 {[%emt 0:00:32] [#]} Nc3+ $1 {[%emt 0:02:35][%mdl 512]} 24. Ka1 {[%emt 0:00:37]} Nxd1 {[%emt 0:15:01]} 25. Nxf7 $2 {[%emt 0:06:45][%mdl 8192] White does not recover from this.} (25. Rxd1 $17 {is tougher.} Kd8 26. Nxf7+ Kc7 27. Nd6+ Re7 28. Qf6) 25... Ne3 {[%emt 0:02:24]} (25... Nf2 $142 26. f5 Nxh1 27. fxe6 Nxe5 (27... Kxe6 $2 {loses.} 28. Qf6+ Kd7 29. Qd6+ Kc8 30. Qxc6+ Rc7 31. Qxe8+ Kb7 32. Nd6+ Kb6 33. Nb3 $18) 28. Nxe5+ Kxe6 (28... Kd6 29. Nf7+ Kxe6 30. Ng5+ Kf5 31. g4+ Kxg4 32. Nf7+ Kh3 33. Qh6+ Kg2 34. Ng5 $19) 29. Qg6+ Kxe5 30. Qxe8+ Kd6 31. Qg6+ Kc7) 26. Nb3 $2 {[%emt 0:02:14]} (26. Nd6+ Kd8 27. Nxb7+ Bxb7 28. Qxb7) 26... Qb6 $19 {[%emt 0:01:05][%cal Oe7d7] Black is clearly winning.} 27. Kb1 {[%emt 0:06:53]} Nf5 {[%emt 0:01:37]} 28. Qh7 {[%emt 0:00:12]} Kf8 {[%emt 0:00:45]} 29. Qh8+ {[%emt 0:01:29]} Kxf7 {[%emt 0:00:05]} 30. Qf6+ {[%emt 0:00:04]} Kg8 {[%emt 0:00:11]} 31. Qg6+ {[%emt 0:00:49]} Ng7 {[%emt 0:01:49]} 32. h4 {[%emt 0:00:08]} Qc7 {[%emt 0:01:27]} 33. h5 {[%emt 0:00:07]} Qf7 {[%emt 0:00:10]} 34. Qg3 {[%emt 0:01:00]} Kh8 {[%emt 0:01:09][%cal Og7f5]} 35. Qf2 {[%emt 0:00:24]} Nxe5 {[%emt 0:00:53]} 36. h6 {[%emt 0:00:10]} Nh5 {[%emt 0:00:27]} 37. Rh4 {[%emt 0:00:51]} Ng6 {[%emt 0:00:35]} 38. Rxh5 {[%emt 0:00:27]} Qxf4 {[%emt 0:00:17]} 39. Qc5 {[%emt 0:01:11]} Rc7 {[%emt 0:00:30]} 40. Qg1 {[%emt 0:00:47]} Qf1+ {[%emt 0:01:57] Weighted Error Value: White=0.91/Black=0.45  Loses game:     	White=2     	---        Missed win:     	---       	Black=1      Mistake:       	White=3     	Black=2      Inaccurate:     	---       	Black=2      OK:         	White=4     	Black=2      Best:        	White=1     	Black=2      Strong:       	White=1     	Black=1} 0-1

[Event "12th National Amateur Chess-ch 2025"]
[Site "Bihar"]
[Date "2025.03.26"]
[Round "2.7"]
[White "Ayushman Mohanty"]
[Black "Vijay, Kumar"]
[Result "1-0"]
[Annotator "TA"]
[ECO "B73"]
[WhiteElo "1827"]
[BlackElo "1919"]
[PlyCount "45"]
[EventDate "2025.03.25"]
[EventCountry "IND"]
[SourceTitle "playchess.com"]
[Source "ChessBase"]
[SourceQuality "1"]
[TimeControl "5400+30"]

{[%evp 21,44,30,38,-26,-15,-6,0,0,8,9,14,15,14,-3,35,48,117,116,192,169,185,183,1337,1325,1246]} 1. e4 {[%emt 0:00:19]} c5 {[%emt 0:00:38]} 2. Nf3 {[%emt 0:00:10]} d6 {[%emt 0:00:07]} 3. d4 {[%emt 0:00:07]} cxd4 {[%emt 0:00:04]} 4. Nxd4 {[%emt 0:00:05]} Nf6 {[%emt 0:00:07]} 5. Nc3 {[%emt 0:00:04]} g6 {[%emt 0:00:20]} 6. Be2 {[%emt 0:00:27]} Nc6 {[%emt 0:01:29]} 7. O-O {[%emt 0:01:19]} Bg7 {[%emt 0:00:45]} 8. Be3 {[%emt 0:04:18]} O-O {[%emt 0:03:51]} 9. Qd2 {[%emt 0:07:30]} Ng4 {[%emt 0:03:29]} 10. Bxg4 {[%emt 0:00:32]} Bxg4 {[%emt 0:00:12]} 11. Nd5 {[%emt 0:00:38]} Rc8 {[%emt 0:01:14]} 12. Nxc6 $146 {[%emt 0:07:25] B73: Sicilian Dragon: Classical System without 9 Nb3.} (12. c4 $14) (12. c4 Bd7 13. b3 Bxd4 14. Bxd4 b5 15. cxb5 Nxd4 16. Qxd4 Bxb5 17. Qxa7 Ra8 18. Nxe7+ Kg7 19. Qd4+ f6 {1-0 Yu,Y (2751)-Lu,S (2625) CHN-chT China 2019 (12.6)}) 12... bxc6 $11 {[%emt 0:00:27]} 13. Nc3 {[%emt 0:00:13]} Rb8 {[%emt 0:02:19]} 14. Rab1 {[%emt 0:02:26] The position is equal.} Rb7 {[%emt 0:00:50]} 15. Bh6 {[%emt 0:01:32]} Qa5 {[%emt 0:01:22]} 16. Bxg7 {[%emt 0:07:38]} Kxg7 {[%emt 0:00:09]} 17. f4 {[%emt 0:01:59][%cal Of4f5]} (17. b3 {simplifies} f6 18. f4 g5 19. f5) 17... Rfb8 {[%emt 0:01:43]} 18. f5 {[%emt 0:04:59]} gxf5 {[%emt 0:07:30][%csl Oa7,Oh7] [#] Black has weak pawns} (18... Rxb2 19. Rxb2 Rxb2 20. h3) (18... Qc5+ $14 19. Kh1 Rxb2) 19. h3 $1 $16 {[%emt 0:03:05] The board is on fire.} (19. Qg5+ Kh8 $14) 19... Bh5 {[%emt 0:02:21] [#]} (19... Rxb2 $16 20. Rxb2 (20. hxg4 Qc5+ 21. Kh2 Qe5+ 22. Kh1 Rxb1 $16) 20... Rxb2) 20. Qg5+ $1 $18 {[%emt 0:02:03] White attacks} (20. Rxf5 Qb6+ 21. Kh1 Bg6 $17) 20... Bg6 {[%emt 0:00:09][%cal Oh7h6] ...h6! is the strong threat.} 21. exf5 {[%emt 0:00:47] Threatens to win with f6+.} Rxb2 $2 {[%emt 0:01:09]} (21... Kh8) 22. f6+ {[%emt 0:00:13]} exf6 {[%emt 0:04:22]} 23. Qxa5 {[%emt 0:00:10] Weighted Error Value: White=0.09 (flawless) /Black=0.79  Mistake:       	---       	Black=3      Inaccurate:     	---       	Black=1      OK:         	White=5     	Black=1      Best:        	White=2     	Black=1      Strong:       	White=2     	---} 1-0

[Event "12th National Amateur Chess-ch 2025"]
[Site "Bihar"]
[Date "2025.03.26"]
[Round "2.8"]
[White "Gurung Rohit"]
[Black "Harsh, Himanshu"]
[Result "1-0"]
[Annotator "TA"]
[ECO "C47"]
[WhiteElo "1902"]
[BlackElo "1803"]
[PlyCount "77"]
[EventDate "2025.03.25"]
[EventCountry "IND"]
[SourceTitle "playchess.com"]
[Source "ChessBase"]
[SourceQuality "1"]
[TimeControl "5400+30"]

{[%evp 22,77,6,-8,1,0,0,-22,-27,-12,-17,-25,-6,-29,-15,-26,16,14,15,20,20,31,10,10,10,11,16,16,0,-9,0,-10,0,0,0,-64,-68,-181,-170,-175,-8,-10,0,0,0,0,0,0,0,-135,0,0,993,989,1287,1310,29997,29998]} 1. e4 {[%emt 0:00:04]} e5 {[%emt 0:02:21]} 2. Nf3 {[%emt 0:07:11]} Nc6 {[%emt 0:00:11]} 3. Nc3 {[%emt 0:00:04]} Nf6 {[%emt 0:00:18]} 4. d4 {[%emt 0:00:07]} exd4 {[%emt 0:00:05]} 5. Nxd4 {[%emt 0:00:04]} Bb4 {[%emt 0:00:17]} 6. Nxc6 {[%emt 0:00:09]} bxc6 {[%emt 0:00:06]} 7. Bd3 {[%emt 0:00:03]} d5 {[%emt 0:00:33]} 8. exd5 {[%emt 0:00:05]} cxd5 {[%emt 0:00:08]} 9. O-O {[%emt 0:00:04]} O-O {[%emt 0:00:17]} 10. Bg5 {[%emt 0:00:03]} c6 {[%emt 0:00:34]} 11. Na4 {[%emt 0:01:04]} Bd6 {[%emt 0:03:08]} 12. c4 {[%emt 0:14:54]} Be6 {[%emt 0:05:48] C47: Scotch Four Knights and Four Knights with 4 g3.} 13. c5 {[%emt 0:15:23]} Bc7 {[%emt 0:02:36]} 14. Qf3 $146 {[%emt 0:05:58]} (14. f4 h6 15. Bh4 Re8 16. Qf3 Rb8 17. a3 Kh8 18. Bc2 Bc8 19. Rfe1 Ba5 20. b4 {1-0 Zayas Gonzalez,L (2027)-Fernandez Rivero,K (1928) CUB-ch U18 Girls 2012 (9)}) 14... h6 {[%emt 0:00:46] The position is equal.} 15. Bxf6 {[%emt 0:02:43]} Qxf6 {[%emt 0:00:16]} 16. Qxf6 {[%emt 0:00:10]} gxf6 {[%emt 0:00:06]} 17. b4 {[%emt 0:02:14]} Rfb8 {[%emt 0:01:45]} 18. Rab1 {[%emt 0:00:22]} Bd7 {[%emt 0:03:46]} 19. Nc3 {[%emt 0:12:30]} Be5 {[%emt 0:03:15]} 20. Ne2 {[%emt 0:00:34]} a5 {[%emt 0:03:10] [#]} 21. b5 {[%emt 0:02:37]} cxb5 {[%emt 0:03:05]} 22. f4 {[%emt 0:00:07]} Bc7 {[%emt 0:00:19]} 23. Nc3 {[%emt 0:06:11][%csl LRb5,LRd5]} b4 {[%emt 0:13:29]} 24. Nxd5 {[%emt 0:00:11]} Bd8 {[%emt 0:00:13]} 25. Rfc1 {[%emt 0:02:22]} Bc6 {[%emt 0:03:49]} 26. Bc4 {[%emt 0:09:27]} Ra7 {[%emt 0:12:52]} 27. Rb3 {[%emt 0:01:57]} Rd7 {[%emt 0:10:40]} 28. Rg3+ {[%emt 0:00:58]} ({White should play} 28. Rd3 $11) 28... Kf8 $1 $15 {[%emt 0:00:18]} 29. Ne3 {[%emt 0:02:34] [#]} (29. Rd3 $15) 29... Bc7 $1 $36 {[%emt 0:04:58][%mdl 2048] Black is really pushing.} 30. Rg4 {[%emt 0:04:50]} Re8 $2 {[%emt 0:04:42] Black has strong rooks and is better} (30... Be4 $19 {and ...f5 would now be decisive} 31. Bb3 Rd3) 31. Nf5 $11 {[%emt 0:00:43]} h5 {[%emt 0:01:47]} 32. Rh4 {[%emt 0:04:05]} Rd2 {[%emt 0:00:54]} 33. Rxh5 {[%emt 0:01:47][%cal Rh5h8]} Rxg2+ {[%emt 0:01:36]} (33... Bxg2 34. Rh8#) 34. Kf1 {[%emt 0:00:01]} Bxf4 {[%emt 0:04:20] A strong pair of Bishops.} 35. Rh8+ {[%emt 0:00:37]} Rg8 {[%emt 0:00:46]} 36. Rh7 {[%emt 0:00:39][%csl Gc4][%cal Rh7f7]} Re6 $2 {[%emt 0:11:32][%mdl 8192] [#]} ({Inferior is} 36... Bxc1 37. Rxf7#) (36... Re4 $11 37. Rxf7+ Ke8) 37. Rd1 $1 $18 {[%emt 0:00:59]} Ke8 {[%emt 0:03:22] Against Rd8+} 38. Bxe6 {[%emt 0:00:58]} fxe6 {[%emt 0:00:00]} 39. Re7+ {[%emt 0:00:31] Never resign too early!   Weighted Error Value: White=0.21 (precise) /Black=0.89  Loses game:     	---       	Black=1      Missed win:     	---       	Black=1      Mistake:       	White=2     	---        Inaccurate:     	---       	Black=3      OK:         	White=11    	Black=8      Best:        	White=3     	Black=1      Strong:       	White=1     	Black=2} 1-0

[Event "12th National Amateur Chess-ch 2025"]
[Site "Bihar"]
[Date "2025.03.26"]
[Round "2.10"]
[White "Vaibhav Sah"]
[Black "Shahan Abu Sayeed"]
[Result "1/2-1/2"]
[Annotator "NA RC"]
[ECO "C10"]
[WhiteElo "1549"]
[BlackElo "1691"]
[PlyCount "91"]
[EventDate "2025.03.25"]
[EventCountry "IND"]
[SourceTitle "playchess.com"]
[Source "ChessBase"]
[SourceQuality "1"]
[TimeControl "5400+30"]

1. e4 {[%emt 0:00:11]} e6 {[%emt 0:00:06]} 2. d4 {[%emt 0:00:19]} d5 {[%emt 0:00:07]} 3. Nc3 {[%emt 0:00:16]} dxe4 {[%emt 0:00:05]} 4. Nxe4 {[%emt 0:00:15]} Nd7 {[%emt 0:00:04]} 5. Nf3 {[%emt 0:00:37]} Ngf6 {[%emt 0:00:05]} 6. Nxf6+ {[%emt 0:01:50]} Nxf6 {[%emt 0:00:10]} 7. c3 {[%emt 0:02:20]} c5 {[%emt 0:00:10]} 8. Be3 {[%emt 0:01:03]} cxd4 {[%emt 0:02:09]} 9. Bxd4 {[%emt 0:03:07]} Be7 {[%emt 0:00:13]} 10. Ne5 {[%emt 0:06:59]} O-O {[%emt 0:03:20]} 11. Bd3 {[%emt 0:07:44]} Qc7 {[%emt 0:01:32]} 12. O-O {[%emt 0:04:52]} Bc5 {[%emt 0:01:19]} 13. Bxc5 {[%emt 0:08:09]} Qxc5 {[%emt 0:00:11]} 14. Re1 {[%emt 0:00:58]} b6 {[%emt 0:04:24]} 15. Qf3 {[%emt 0:05:37]} Rb8 {[%emt 0:16:58]} 16. Qh3 {[%emt 0:04:38]} g6 {[%emt 0:05:57]} 17. Rad1 {[%emt 0:12:43]} Bb7 {[%emt 0:03:32]} 18. Qh4 {[%emt 0:05:55]} Kg7 {[%emt 0:05:35]} 19. Qxf6+ {[%emt 0:03:28]} Kxf6 {[%emt 0:01:02]} 20. Nd7+ {[%emt 0:00:03]} Kg7 {[%emt 0:00:14]} 21. Nxc5 {[%emt 0:00:06]} bxc5 {[%emt 0:00:04]} 22. b4 {[%emt 0:00:41]} Rfd8 {[%emt 0:06:52]} 23. Be2 {[%emt 0:03:29]} cxb4 {[%emt 0:02:34]} 24. cxb4 {[%emt 0:00:19]} Rbc8 {[%emt 0:00:18]} 25. f3 {[%emt 0:06:34]} Rxd1 {[%emt 0:02:20]} 26. Bxd1 {[%emt 0:01:02]} Rc1 {[%emt 0:03:02]} 27. Kf2 {[%emt 0:00:20]} Bd5 {[%emt 0:00:28]} 28. a4 {[%emt 0:01:43]} Rc4 {[%emt 0:01:26]} 29. b5 {[%emt 0:00:34]} Rb4 {[%emt 0:00:42]} 30. Re2 {[%emt 0:00:38]} f5 {[%emt 0:02:45]} 31. Rc2 {[%emt 0:02:14]} Bc4 {[%emt 0:01:01]} 32. Be2 {[%emt 0:01:51]} Bxe2 {[%emt 0:00:23]} 33. Kxe2 {[%emt 0:00:47]} Rxa4 {[%emt 0:00:13]} 34. Rc7+ {[%emt 0:00:06]} Kf6 {[%emt 0:00:31]} 35. Rxh7 {[%emt 0:00:20]} Ke5 {[%emt 0:02:18]} 36. Rg7 {[%emt 0:01:19]} Rb4 {[%emt 0:03:30]} 37. Rxa7 {[%emt 0:01:41]} Rxb5 {[%emt 0:00:18]} 38. Rg7 {[%emt 0:01:13]} Rb2+ {[%emt 0:01:18]} 39. Kf1 {[%emt 0:00:19]} Kf6 {[%emt 0:00:45]} 40. Ra7 {[%emt 0:00:13]} e5 {[%emt 0:03:24]} 41. Ra5 {[%emt 0:01:37]} e4 {[%emt 0:01:09]} 42. fxe4 {[%emt 0:00:16]} fxe4 {[%emt 0:00:07]} 43. h4 {[%emt 0:00:42]} Rc2 {[%emt 0:04:06]} 44. h5 {[%emt 0:00:41]} gxh5 {[%emt 0:00:28]} 45. Rxh5 {[%emt 0:00:07]} Ke6 {[%emt 0:00:31]} 46. Ra5 {[%emt 0:00:28]} 1/2-1/2